[Event "1st Caplin Menchik Memorial 2022"]
[Site "London"]
[Date "2022.06.22"]
[Round "5.5"]
[White "Arakhamia-Grant, Ketevan"]
[Black "Toma, Katarzyna"]
[Result "0-1"]
[ECO "B51"]
[WhiteElo "2354"]
[BlackElo "2304"]
[Annotator "TA"]
[PlyCount "102"]
[EventDate "2022.06.21"]
[EventType "tourn"]
[EventCountry "ENG"]
[SourceTitle "playchess.com"]
[Source "ChessBase"]
[SourceQuality "1"]
[TimeControl "5400+30"]

{[%evp 9,102,22,17,22,42,12,20,16,14,7,22,15,40,-16,-16,-18,-10,-16,28,8,25,20,49,41,58,16,21,-4,0,0,0,-15,0,-76,-74,-66,-61,-184,-170,-177,-55,-43,-57,-171,-177,-197,-18,-37,-36,-48,0,-66,-70,-53,0,-6,0,0,0,-34,0,0,0,-50,-50,-50,-26,-50,-50,-50,-50,-54,-54,-295,-55,-55,-33,-89,-33,-132,-132,-132,-132,-468,-446,-393,-343,-227,-83,-1481,-1466,-1355,-1337,-1234,-1237]} 1. e4 {[%emt 0:00:18]} c5 {[%emt 0:00:08][%cal Bc7c5,Bc5c4,Bc4b3][%mdl 32]} 2. Nf3 {[%emt 0:00:15]} d6 {[%emt 0:00:11]} 3. Bb5+ {[%emt 0:02:42]} Nd7 {[%emt 0:00:16]} 4. c3 {[%emt 0:00:20]} a6 {[%emt 0:01:31]} 5. Ba4 {[%emt 0:00:14]} Ngf6 {[%emt 0:03:02]} 6. Bc2 {[%emt 0:00:29] B51: Sicilian: Moscow Variation (3 Bb5+) without 3...Bd7.} c4 {[%emt 0:03:50] [#]} 7. a4 $146 {[%emt 0:06:55]} ({Predecessor:} 7. b3 b5 8. bxc4 bxc4 9. Na3 Qc7 10. Qe2 Nb6 11. e5 dxe5 12. Nxe5 Be6 13. Rb1 {½-½ (54) Amin,B (2683)-Edouard,R (2591) Germany 2022}) 7... Nc5 {[%emt 0:02:00]} 8. Qe2 {[%emt 0:01:25] The position is equal.} d5 {[%emt 0:03:58][%cal Rd5e4]} 9. e5 {[%emt 0:03:43]} Nfd7 {[%emt 0:00:24]} 10. O-O $1 {[%emt 0:10:33]} e6 {[%emt 0:03:27]} 11. b4 {[%emt 0:02:14]} ({White should try} 11. Ne1 $14) 11... cxb3 $11 {[%emt 0:00:49]} 12. Bd1 {[%emt 0:00:05]} Qa5 {[%emt 0:09:23]} 13. Ba3 {[%emt 0:16:56]} Nxa4 {[%emt 0:13:48]} 14. Bxf8 {[%emt 0:10:51]} Kxf8 {[%emt 0:00:14]} 15. Bxb3 {[%emt 0:00:17]} Ndc5 {[%emt 0:01:44]} 16. Bc2 {[%emt 0:00:28][%mdl 1024] White has compensation.} b5 $1 {[%emt 0:12:24]} 17. Ng5 {[%emt 0:11:08]} h6 {[%emt 0:04:35]} 18. Qh5 {[%emt 0:05:56][%csl Gg5][%cal Rh5f7]} Qc7 {[%emt 0:00:12]} 19. d4 {[%emt 0:02:29]} g6 {[%emt 0:01:37]} 20. Qh3 {[%emt 0:09:19]} Kg7 {[%emt 0:01:41]} 21. Nf3 {[%emt 0:00:08]} (21. Nxf7 $1 $11 Qxf7 22. dxc5) 21... Ne4 $17 {[%emt 0:03:26]} 22. Bxa4 {[%emt 0:02:23]} bxa4 {[%emt 0:00:06]} 23. Rxa4 {[%emt 0:00:07]} (23. Nfd2 $15) 23... Bd7 $19 {[%emt 0:03:22]} ({Stronger than} 23... Nxc3 24. Nxc3 Qxc3 25. Qh4 $11) 24. Ra3 {[%emt 0:00:07]} Bb5 {[%emt 0:00:14]} (24... Qb7 $19 {...Rhb8 is the strong threat.} 25. Nh4 Rhb8) 25. Re1 $15 {[%emt 0:02:46]} Qe7 {[%emt 0:00:43]} 26. Ra5 {[%emt 0:01:53]} ({White should play} 26. Ra2 $1 $15) 26... Rhc8 $1 $19 {[%emt 0:08:21]} 27. Nfd2 {[%emt 0:00:18] [#]} Qg5 $2 {[%emt 0:05:35]} (27... Nxc3 $1 $19 {[%mdl 512] And now ...Qb4 would win.} 28. Nxc3 Qb4 29. Rxb5 axb5) 28. Qe3 {[%emt 0:05:56]} Qxe3 {[%emt 0:00:58]} 29. Rxe3 {[%emt 0:00:11]} Rab8 {[%emt 0:03:16]} (29... Nxd2 $15 30. Nxd2 Bd7) 30. f3 {[%emt 0:00:35]} (30. Nxe4 $11 dxe4 31. h4) 30... Nxd2 $15 {[%emt 0:00:27] Black is more active.} 31. Nxd2 {[%emt 0:00:05]} Bc4 {[%emt 0:03:00]} (31... Be8 $15 32. Ra2 a5) 32. Nxc4 {[%emt 0:02:38]} Rxc4 {[%emt 0:00:04]} 33. Rxa6 $11 {[%emt 0:00:07][%mdl 4096] Endgame KRR-KRR} Rb3 {[%emt 0:00:03]} 34. Ra2 {[%emt 0:02:08]} Rbxc3 {[%emt 0:00:37]} 35. Rxc3 {[%emt 0:00:05]} Rxc3 $15 {[%emt 0:00:04] KR-KR} 36. Rd2 {[%emt 0:00:07]} (36. h4 $1 $11) 36... g5 {[%emt 0:01:31]} 37. Kf2 {[%emt 0:00:14]} h5 {[%emt 0:00:31][%cal Bh6h5,Bh5h4][%mdl 32]} 38. Ke2 {[%emt 0:00:53]} Kg6 {[%emt 0:01:15]} 39. Ra2 {[%emt 0:00:25]} h4 {[%emt 0:00:41]} 40. Rd2 {[%emt 0:02:06]} Kf5 {[%emt 0:01:01][%cal Oh4h3]} 41. Kf2 $2 {[%emt 0:00:34]} ({Better is} 41. Rd3 $1 $15 Rc4 42. Ke3) 41... Kf4 $2 {[%emt 0:02:10]} (41... g4 $19 42. fxg4+ Kxg4) 42. g3+ $1 {[%emt 0:00:20]} hxg3+ {[%emt 0:01:54]} 43. hxg3+ {[%emt 0:00:04]} Kf5 {[%emt 0:00:04] aiming for ...g4.} 44. Kg2 {[%emt 0:00:31]} (44. Rd1 $1 $15) 44... Rb3 $17 {[%emt 0:00:49]} 45. Ra2 {[%emt 0:01:04]} Rd3 {[%emt 0:00:15] Threatens to win with ...g4.} 46. Ra4 $2 {[%emt 0:00:15][%mdl 8192]} (46. Ra7 $17 {was the crucial defense.} Rxd4 47. Rxf7+ Kxe5 48. Rg7) 46... g4 $19 {[%emt 0:00:31]} 47. fxg4+ {[%emt 0:00:13]} Kxg4 {[%emt 0:00:07]} 48. Kf2 {[%emt 0:00:25]} Rxg3 {[%emt 0:00:45]} (48... Kf5 $19 {is more deadly. Strongly threatening ...Ke4.} 49. g4+ Kf4) 49. Ke2 $2 {[%emt 0:00:49][%mdl 8192]} (49. Ra7 $17) 49... Kf4 {[%emt 0:00:23] Black is clearly winning.} 50. Ra7 {[%emt 0:00:19]} Ke4 {[%emt 0:00:27]} 51. Rxf7 {[%emt 0:00:42]} Kxd4 {[%emt 0:00:10] Weighted Error Value: White=0.50/Black=0.28 (precise)} 0-1

[Event "1st Caplin Menchik Memorial 2022"]
[Site "London"]
[Date "2022.06.23"]
[Round "6.1"]
[White "Yao, Lan"]
[Black "Toma, Katarzyna"]
[Result "1/2-1/2"]
[ECO "B31"]
[WhiteElo "2276"]
[BlackElo "2304"]
[Annotator "TA"]
[PlyCount "83"]
[EventDate "2022.06.21"]
[EventType "tourn"]
[EventCountry "ENG"]
[SourceTitle "playchess.com"]
[Source "ChessBase"]
[SourceQuality "1"]
[TimeControl "5400+30"]

{[%evp 18,83,13,-16,-22,-18,38,38,28,24,18,17,52,0,0,-50,-37,-64,-61,-70,-65,-73,-73,-72,-70,-71,-71,-83,-80,-72,-63,-62,-57,-62,-56,-79,-79,-79,-79,-79,-60,-62,-37,-41,-7,-8,36,35,31,17,67,59,83,56,57,57,77,0,0,0,0,0,0,0,0,0,0,0]} 1. e4 {[%emt 0:00:09]} c5 {[%emt 0:00:09]} 2. Nf3 {[%emt 0:00:08]} Nc6 {[%emt 0:00:06]} 3. Bb5 {[%emt 0:00:07]} g6 {[%emt 0:00:16]} 4. O-O {[%emt 0:00:08]} Bg7 {[%emt 0:00:06]} 5. Re1 {[%emt 0:00:08]} Nf6 {[%emt 0:01:02]} 6. e5 {[%emt 0:00:11]} Nd5 {[%emt 0:00:28]} 7. Nc3 {[%emt 0:00:06][%cal Bb1c3,Bc3e4,Be4f6][%mdl 32]} Nc7 {[%emt 0:03:26]} 8. Bxc6 {[%emt 0:00:05]} dxc6 {[%emt 0:00:04]} 9. Ne4 {[%emt 0:00:13]} b6 {[%emt 0:00:06]} 10. Nf6+ {[%emt 0:11:30]} Kf8 {[%emt 0:00:06] B31: Sicilian: 2...Nc6 3 Bb5 g6.} 11. Ne4 {[%emt 0:00:28]} Ne6 {[%emt 0:06:37] 11...h6 gains popularity.} (11... Bg4 $1 $11) 12. d3 {[%emt 0:02:37]} Nd4 {[%emt 0:02:35] White is slightly better.} 13. c3 {[%emt 0:06:23]} Nxf3+ {[%emt 0:02:06]} 14. Qxf3 {[%emt 0:00:11]} Qd5 {[%emt 0:02:12] [#]} 15. Bg5 $146 {[%emt 0:21:43]} ({White should play} 15. a4 $14) ({Predecessor:} 15. Bf4 Bxe5 16. c4 Qd4 17. Bd2 Bg7 18. Bc3 Qd7 19. Ng5 Qf5 20. Qxc6 Bxc3 21. bxc3 {½-½ (34) Dominguez Gonzalez,I (2295)-Gonzalez Velez,F (2405) Terrassa 1996}) 15... h6 $11 {[%emt 0:03:39]} 16. Bf6 {[%emt 0:02:59]} Bf5 $15 {[%emt 0:01:52]} 17. Bxg7+ {[%emt 0:01:49]} Kxg7 {[%emt 0:00:07]} 18. Re3 {[%emt 0:14:39]} Rad8 {[%emt 0:03:45]} ({Reject} 18... Qxe5 19. Ng3 Qf6 20. Nxf5+ gxf5 21. Rae1 $11) 19. Qf4 {[%emt 0:05:28]} Bxe4 {[%emt 0:11:30]} 20. Qxe4 {[%emt 0:00:10]} Qxe4 {[%emt 0:00:10]} 21. dxe4 $17 {[%emt 0:00:03][%mdl 4096] Endgame KRR-KRR} Rd2 {[%emt 0:00:08]} 22. Rb1 {[%emt 0:00:17]} Rhd8 {[%emt 0:00:13][%cal Od2b2]} 23. Kf1 {[%emt 0:00:20]} c4 {[%emt 0:02:09]} 24. Re2 {[%emt 0:00:38]} R2d3 {[%emt 0:00:48]} 25. f3 {[%emt 0:02:35]} g5 {[%emt 0:00:38]} 26. Kf2 {[%emt 0:00:34][%cal Oh2h4]} f6 {[%emt 0:02:40]} 27. exf6+ {[%emt 0:01:00]} Kxf6 {[%emt 0:00:06]} 28. Rbe1 {[%emt 0:03:52][%cal Oh2h4]} Ke5 {[%emt 0:01:42]} 29. Re3 {[%emt 0:01:11]} c5 {[%emt 0:01:11]} 30. h4 {[%emt 0:07:30]} gxh4 {[%emt 0:10:23] [#] And now ...Rd1 would win.} 31. Rh1 {[%emt 0:00:54]} Rg8 {[%emt 0:01:16] Hoping for ...Rd2+.} 32. Rxd3 {[%emt 0:03:21]} cxd3 {[%emt 0:00:07]} 33. Rxh4 $14 {[%emt 0:00:54] KR-KR} c4 {[%emt 0:14:32]} (33... Rd8 $1 $11 34. Rh5+ Kf6 35. Rxh6+ Kg5) 34. Rxh6 {[%emt 0:01:00]} e6 {[%emt 0:01:45]} 35. g3 {[%emt 0:03:11]} b5 {[%emt 0:02:17]} 36. Rh5+ {[%emt 0:01:10]} Kd6 {[%emt 0:00:06] [#]} 37. g4 {[%emt 0:01:18]} ({Of course not} 37. Rxb5 Rxg3 38. Ra5 (38. Kxg3 $2 {perishes.} d2 $19) 38... Rg2+ 39. Kxg2 d2 40. e5+ Kc7 41. Rxa7+ Kc8 42. Ra8+ Kc7 43. Ra7+ Kc8 44. Ra8+ Kc7 45. Ra7+ $11) (37. f4 $1 $16) 37... e5 $11 {[%emt 0:02:20] The position is equal.} 38. Ke3 {[%emt 0:01:11]} a5 {[%emt 0:03:42]} 39. Rh6+ {[%emt 0:00:49]} Kc7 {[%emt 0:03:43]} 40. Rh7+ {[%emt 0:01:09]} Kc6 {[%emt 0:00:21]} 41. Rh6+ {[%emt 0:00:14]} Kc7 {[%emt 0:00:08]} 42. Rh7+ {[%emt 0:00:13] Weighted Error Value: White=0.10 (very precise) /Black=0.11 (very precise)} 1/2-1/2

[Event "1st Caplin Menchik Memorial 2022"]
[Site "London"]
[Date "2022.06.23"]
[Round "6.2"]
[White "Hryshchenko, Kamila"]
[Black "Arakhamia-Grant, Ketevan"]
[Result "0-1"]
[ECO "B21"]
[WhiteElo "2037"]
[BlackElo "2354"]
[Annotator "TA"]
[PlyCount "77"]
[EventDate "2022.06.21"]
[EventType "tourn"]
[EventCountry "ENG"]
[SourceTitle "playchess.com"]
[Source "ChessBase"]
[SourceQuality "1"]
[TimeControl "5400+30"]

{[%evp 9,77,0,14,0,0,0,0,0,0,-3,16,9,10,6,12,10,7,14,0,4,8,0,0,0,0,0,0,0,0,0,0,0,0,0,0,0,0,0,0,-29,0,0,0,-27,-35,-60,-64,-70,-60,-63,-66,-257,-248,-247,-73,-120,-134,-238,-225,-220,-217,-216,-106,-109,-54,-61,-50,-49,8,8]} 1. e4 {[%emt 0:00:03]} c5 {[%emt 0:00:38]} 2. d3 {[%emt 0:00:21]} d5 {[%emt 0:02:08]} 3. Be2 {[%emt 0:00:53]} Nc6 {[%emt 0:00:52][%cal Bb8c6,Bc6e5,Be5g4,Bg4e3][%mdl 32]} 4. f4 {[%emt 0:00:58]} e5 {[%emt 0:08:56]} 5. Nf3 {[%emt 0:08:23]} dxe4 {[%emt 0:19:21]} 6. dxe4 {[%emt 0:01:44] Hoping for Qxd8+. B21: Sicilian: 2 f4 and Morra Gambit.} Qxd1+ {[%emt 0:04:55]} 7. Bxd1 {[%emt 0:00:13]} Bd6 {[%emt 0:00:23]} 8. fxe5 {[%emt 0:16:15]} Nxe5 {[%emt 0:00:47]} 9. Nc3 {[%emt 0:00:41]} Bd7 {[%emt 0:06:39] [#]} 10. Be2 $146 {[%emt 0:01:02]} ({Predecessor:} 10. O-O Ne7 11. Be2 N7c6 12. Be3 Ng4 13. Bg5 h6 14. Rad1 Bxh2+ 15. Nxh2 Nxh2 16. Rxf7 Kxf7 17. Rxd7+ {0-1 (34) Bortnyk,O (2598)-Deac,B (2625) Chess.com INT 2020}) 10... Ne7 {[%emt 0:00:51]} 11. Be3 {[%emt 0:04:22]} Ng4 {[%emt 0:08:04] [#]} 12. O-O-O $1 {[%emt 0:08:44]} Nxe3 {[%emt 0:02:55]} 13. Rxd6 {[%emt 0:00:19]} O-O-O {[%emt 0:04:09]} 14. Ne5 {[%emt 0:15:24]} Be6 {[%emt 0:00:56] [#]} 15. Rxe6 {[%emt 0:03:21]} fxe6 {[%emt 0:00:06]} 16. Nf7 {[%emt 0:16:46][%csl LRd8,LRh8]} Rhf8 {[%emt 0:04:36]} 17. Nxd8 {[%emt 0:00:11]} Rxd8 {[%emt 0:00:20]} 18. Re1 {[%emt 0:11:09]} Ng6 $1 {[%emt 0:03:07]} 19. g3 {[%emt 0:01:04]} Ne5 {[%emt 0:01:02]} 20. Na4 {[%emt 0:02:22]} c4 {[%emt 0:04:10]} 21. Nc5 {[%emt 0:03:54]} Rd6 {[%emt 0:00:26]} 22. Bh5 {[%emt 0:00:22]} g6 {[%emt 0:05:02]} 23. Rxe3 {[%emt 0:01:29] Be2 is the strong threat.} gxh5 $11 {[%emt 0:00:06][%mdl 4096] Endgame KRN-KRN} 24. Na4 {[%emt 0:00:56]} Rd8 {[%emt 0:01:30]} (24... b5 $5 {[%cal Rb5a4]} 25. Nc3 (25. Nc5 a5 $11) 25... b4 $11) 25. b3 {[%emt 0:00:23]} Rf8 {[%emt 0:00:38]} 26. Re2 {[%emt 0:00:43]} (26. Nc5 $5 {[%cal Rc5e6]}) 26... Kc7 {[%emt 0:07:51]} 27. Nb2 {[%emt 0:00:34]} b5 {[%emt 0:01:05][%cal Bb7b5,Bb5c4][%mdl 32] Threatens to win with ...c3.} 28. bxc4 {[%emt 0:00:06]} bxc4 {[%emt 0:00:06]} 29. Nd1 {[%emt 0:01:02]} Kc6 {[%emt 0:08:03] Black is more active.} 30. Rf2 $2 {[%emt 0:01:05] Against Rf1} (30. Rd2 $15) 30... Rxf2 $19 {[%emt 0:00:51]} 31. Nxf2 {[%emt 0:00:04] KN-KN} Kc5 $2 {[%emt 0:00:26]} (31... Ng4 $1 $19 {[%cal Rg4f2] is more deadly.} 32. Nh3 e5) 32. Kd2 {[%emt 0:00:56]} (32. Nh3 $142) 32... Nf3+ $17 {[%emt 0:01:12]} 33. Ke2 {[%emt 0:00:13]} (33. Ke3 $17 {was forced.} Nxh2 34. c3) 33... Nxh2 $19 {[%emt 0:00:35]} 34. c3 {[%emt 0:00:26]} Kd6 $1 {[%emt 0:01:28]} 35. Nh3 {[%emt 0:00:22] [#]} Ng4 {[%emt 0:02:14]} (35... Ke5 $1 $19 {and Black stays clearly on top.} 36. Ng5 h6 37. Nf7+ Kxe4 38. Nd6+ Kd5) 36. Kf3 {[%emt 0:00:59]} Ne5+ {[%emt 0:00:46]} ({Black should try} 36... Ke5 $17 {And now ...Nh2+ would win.} 37. Ng5 Nh2+ 38. Ke3 Nf1+ 39. Kf3 {[#]} Nxg3 $1 40. Nf7+ (40. Kxg3 $2 h6 $19) 40... Kf6) 37. Ke3 $15 {[%emt 0:00:11]} Nd3 {[%emt 0:00:42]} 38. Kd4 {[%emt 0:00:08]} Nb2 {[%emt 0:00:04]} (38... e5+ $15 39. Kxc4 Nb2+ 40. Kb3 Nd1) 39. e5+ {[%mdl 32768] Weighted Error Value: White=0.19 (very precise) /Black=0.19 (very precise) . Loss on time!?} 0-1

[Event "1st Caplin Menchik Memorial 2022"]
[Site "London"]
[Date "2022.06.23"]
[Round "6.3"]
[White "Varney, Zoe"]
[Black "Schulze, Lara"]
[Result "0-1"]
[ECO "C22"]
[WhiteElo "2046"]
[BlackElo "2303"]
[Annotator "TA"]
[PlyCount "108"]
[EventDate "2022.06.21"]
[EventType "tourn"]
[EventCountry "ENG"]
[SourceTitle "playchess.com"]
[Source "ChessBase"]
[SourceQuality "1"]
[TimeControl "5400+30"]

{[%evp 9,107,-16,68,54,62,54,64,38,76,65,69,22,74,57,70,64,86,92,100,72,126,65,73,0,14,-6,16,-12,0,0,36,0,145,143,161,146,229,243,214,168,147,148,165,130,133,136,133,87,66,50,51,0,0,0,-2,0,0,-8,-8,-11,-8,-18,-7,-15,-9,-15,0,-12,-8,-8,-8,-21,0,-230,0,0,0,-181,0,0,0,0,0,0,0,0,0,0,0,0,0,-29968,-12843,-29979,-29980,-29997,-29998,-29998,-29999,-29999]} 1. e4 {[%emt 0:00:03]} e5 {[%emt 0:00:18]} 2. d4 {[%emt 0:00:04]} exd4 {[%emt 0:00:23]} 3. Qxd4 {[%emt 0:00:06]} Nc6 {[%emt 0:00:33]} 4. Qe3 {[%emt 0:00:07]} Bb4+ {[%emt 0:17:16]} 5. Nc3 {[%emt 0:02:33]} Nge7 {[%emt 0:01:49]} (5... Nf6 $11) 6. Bd2 $14 {[%emt 0:04:19] C22: Centre Game.} O-O {[%emt 0:05:35]} 7. O-O-O {[%emt 0:01:30]} d6 {[%emt 0:01:08]} 8. Qg3 {[%emt 0:05:11] White is slightly better.} Be6 {[%emt 0:07:42] [#]} 9. Nf3 $146 {[%emt 0:01:53]} ({Predecessor:} 9. f4 f5 10. Nf3 fxe4 11. Ng5 Qd7 12. Ncxe4 Bg4 13. Bxb4 Nxb4 14. Re1 d5 15. Nc5 {1-0 (27) Rudd,J (2345)-Horner,J (2372) Liverpool 2008}) 9... f6 {[%emt 0:02:42]} 10. Bd3 {[%emt 0:16:11]} (10. h4 $14) 10... Bf7 {[%emt 0:05:20]} (10... Bc5 $11) 11. h4 {[%emt 0:08:31] Threatens to win with Bh6.} Kh8 {[%emt 0:13:55]} 12. h5 {[%emt 0:06:55]} Ne5 {[%emt 0:01:23]} 13. Be2 {[%emt 0:06:00]} (13. h6 Nxd3+ 14. cxd3 g6 $14) 13... Nxf3 {[%emt 0:10:15]} 14. gxf3 {[%emt 0:01:46]} a5 {[%emt 0:05:31]} (14... h6 $142) 15. Qh4 {[%emt 0:12:45]} (15. h6 $16 {[%csl Gh6][%cal Rg3g7]} g6 16. f4) 15... Nc6 {[%emt 0:02:29]} (15... Bxc3 $2 16. Bxc3 Ng8 17. h6 $18) 16. Rdg1 {[%emt 0:18:51]} ({White should try} 16. h6 $16 {hxg7+ would kill now.} g6 17. Kb1) 16... Nd4 {[%emt 0:06:48] Strongly threatening ...Bxc3.} 17. Bd1 {[%emt 0:00:20]} Qe7 {[%emt 0:01:53]} 18. Rh3 {[%emt 0:07:36]} c6 {[%emt 0:02:46]} 19. f4 {[%emt 0:01:03]} Rae8 {[%emt 0:01:49]} 20. f5 $40 {[%emt 0:00:53][%mdl 128] White has some attack.} d5 {[%emt 0:03:24]} (20... Nb5 $11 {remains equal.}) 21. exd5 $1 $16 {[%emt 0:01:13]} Nxf5 {[%emt 0:03:30]} 22. Qg4 {[%emt 0:00:03]} Bxc3 {[%emt 0:01:24]} (22... Bxd5 $16 23. Qxf5 Be6) 23. Bxc3 $18 {[%emt 0:00:12]} Qe4 {[%emt 0:00:05]} 24. Qxe4 {[%emt 0:00:25]} Rxe4 {[%emt 0:00:01] [#]} 25. dxc6 {[%emt 0:00:18]} bxc6 {[%emt 0:00:12]} 26. h6 {[%emt 0:00:08] Hoping for hxg7+.} ({Resist} 26. Bxa5 $6 Ra4 $16) 26... Bg6 {[%emt 0:00:22]} 27. hxg7+ {[%emt 0:01:04]} Kxg7 {[%emt 0:00:01]} 28. Bg4 {[%emt 0:00:45]} (28. Rd3 $142) 28... Nd4 $16 {[%emt 0:00:28]} 29. Bxd4 {[%emt 0:01:27]} Rxd4 {[%emt 0:00:09]} 30. Bf5 {[%emt 0:00:04]} (30. Rc3 $14) 30... Rf4 $11 {[%emt 0:00:51][%csl LRf2,LRf5]} 31. Bxg6 {[%emt 0:00:53]} hxg6 {[%emt 0:00:02][%mdl 4096] Endgame KRR-KRR} 32. Rg2 {[%emt 0:00:26]} Rd8 {[%emt 0:00:58]} 33. Rhg3 {[%emt 0:01:07]} g5 {[%emt 0:00:11]} 34. Rc3 {[%emt 0:00:11]} Rd6 {[%emt 0:00:56]} 35. b3 {[%emt 0:01:08]} a4 {[%emt 0:00:50]} 36. Kb2 {[%emt 0:00:36]} Rd2 {[%emt 0:00:46]} 37. Rxc6 {[%emt 0:00:10]} (37. bxa4 {keeps more tension.} Rb4+ 38. Ka3 Rdd4 39. a5) 37... axb3 {[%emt 0:00:31]} 38. Kxb3 {[%emt 0:00:28]} Rdxf2 {[%emt 0:01:03]} 39. Rxf2 {[%emt 0:01:24]} Rxf2 {[%emt 0:00:04] KR-KR} 40. a4 {[%emt 0:00:02]} g4 {[%emt 0:00:49]} 41. Rc7+ $2 {[%emt 0:00:45] [#]} (41. a5 $11) 41... Kg6 $2 {[%emt 0:00:22]} (41... Kh6 $1 $19 42. Rc3 (42. a5 $2 g3 $19) 42... Rf5) 42. a5 $1 {[%emt 0:00:03]} Rf3+ {[%emt 0:01:51]} 43. c3 $2 {[%emt 0:00:03]} (43. Rc3 $11 {and White has nothing to worry.}) 43... g3 $2 {[%emt 0:00:37]} ({Better is} 43... Re3 $19 {And now ...Re8 would win.} 44. Rc8 f5 45. Rg8+ Kh5) 44. Rc8 {[%emt 0:00:45]} Kh7 {[%emt 0:01:00]} 45. a6 {[%emt 0:00:49] White wants to mate with a7.} g2 {[%emt 0:00:58]} 46. a7 {[%emt 0:01:17]} g1=Q {[%emt 0:01:24] ( -> ...Qb6+)} 47. a8=Q $1 {[%emt 0:00:03] Intending Rh8+ and mate. KQR-KQR} ({Not} 47. Rc7+ $2 Kg6 48. a8=Q Qb1+ 49. Kc4 Rf4+ 50. Kc5 Rf5+ 51. Qd5 Rxd5+ $19) 47... Qb1+ {[%emt 0:00:56]} 48. Kc4 $1 {[%emt 0:00:11] White threatens Rh8+ and mate.} Rf4+ {[%emt 0:00:26]} 49. Kc5 {[%emt 0:00:30]} Rf5+ {[%emt 0:00:33]} 50. Kc6 $2 {[%emt 0:01:16][%mdl 8192]} (50. Kc4 $11 Qb5+ 51. Kd4 Rf4+ 52. Ke3 Qe5+ 53. Kd3 Qd6+ 54. Ke3 Qe5+ 55. Kd3 Qd6+ 56. Ke3 Qe5+) 50... Qb5+ {[%emt 0:00:28]} 51. Kd6 {[%emt 0:00:48]} Qd3+ {[%emt 0:00:28] Black mates.} 52. Ke7 {[%emt 0:00:37]} Re5+ {[%emt 0:00:15]} 53. Kf8 {[%emt 0:00:18]} Qd6+ {[%emt 0:00:14]} 54. Kf7 {[%emt 0:00:05]} Qe7# {[%emt 0:00:07] Quite a comeback for Black.  Weighted Error Value: White=0.45/Black=0.29 (precise)} 0-1

[Event "1st Caplin Menchik Memorial 2022"]
[Site "London"]
[Date "2022.06.23"]
[Round "6.4"]
[White "Hunt, Harriet V"]
[Black "Dworakowska, Joanna"]
[Result "0-1"]
[ECO "B67"]
[WhiteElo "2395"]
[BlackElo "2321"]
[Annotator "RC"]
[PlyCount "98"]
[EventDate "2022.06.21"]
[EventType "tourn"]
[EventCountry "ENG"]
[SourceTitle "playchess.com"]
[Source "ChessBase"]
[SourceQuality "1"]
[TimeControl "5400+30"]

1. e4 {[%emt 0:00:03]} c5 {[%emt 0:00:08]} 2. Nc3 {[%emt 0:00:10]} Nc6 {[%emt 0:01:57]} 3. Nge2 {[%emt 0:00:16]} d6 {[%emt 0:00:23]} 4. d4 {[%emt 0:00:27]} cxd4 {[%emt 0:00:05]} 5. Nxd4 {[%emt 0:00:04]} Nf6 {[%emt 0:00:06]} 6. Bg5 {[%emt 0:00:21]} e6 {[%emt 0:00:16]} 7. Qd2 {[%emt 0:00:19]} a6 {[%emt 0:01:46]} 8. O-O-O {[%emt 0:00:26]} Bd7 {[%emt 0:01:54]} 9. f3 {[%emt 0:00:25]} Be7 {[%emt 0:03:05]} 10. h4 {[%emt 0:01:16]} h6 {[%emt 0:01:07]} 11. Be3 {[%emt 0:00:49]} h5 {[%emt 0:00:15]} 12. Bg5 {[%emt 0:03:17]} Ne5 {[%emt 0:01:46]} 13. Be2 {[%emt 0:13:20]} b5 {[%emt 0:03:58]} 14. f4 {[%emt 0:20:13]} b4 {[%emt 0:00:20]} 15. fxe5 {[%emt 0:00:54]} bxc3 {[%emt 0:05:53]} 16. Qxc3 {[%emt 0:23:25]} Nxe4 {[%emt 0:18:12]} 17. Bxe7 {[%emt 0:00:00]} Nxc3 {[%emt 0:02:09]} 18. Bxd8 {[%emt 0:00:00]} Nxd1 {[%emt 0:00:32]} 19. exd6 {[%emt 0:02:37]} Nf2 {[%emt 0:09:20]} 20. Rf1 {[%emt 0:00:06]} Rxd8 {[%emt 0:00:09]} 21. Rxf2 {[%emt 0:00:04]} Bc8 {[%emt 0:00:12]} 22. c4 {[%emt 0:02:18]} Rxd6 {[%emt 0:00:18]} 23. Nb3 {[%emt 0:00:05]} e5 {[%emt 0:05:51]} 24. c5 {[%emt 0:01:45]} Rg6 {[%emt 0:00:32]} 25. Nd2 {[%emt 0:04:46]} Bg4 {[%emt 0:08:38]} 26. Bd3 {[%emt 0:01:45]} f5 {[%emt 0:08:40]} 27. Bxf5 {[%emt 0:09:00]} Bxf5 {[%emt 0:00:14]} 28. Rxf5 {[%emt 0:00:04]} Rxg2 {[%emt 0:00:11]} 29. Rxe5+ {[%emt 0:00:08]} Kd8 {[%emt 0:03:25]} 30. b4 {[%emt 0:06:51]} Rg4 {[%emt 0:01:51]} 31. Ne4 {[%emt 0:00:42]} Re8 {[%emt 0:00:50]} 32. Rd5+ {[%emt 0:01:12]} Kc7 {[%emt 0:00:13]} 33. Nc3 {[%emt 0:01:51]} g6 {[%emt 0:02:56]} 34. Rd6 {[%emt 0:00:50]} Kb7 {[%emt 0:02:28]} 35. Rb6+ {[%emt 0:01:00]} Ka7 {[%emt 0:00:02]} 36. b5 {[%emt 0:00:19]} Rc4 {[%emt 0:02:10]} 37. Rxa6+ {[%emt 0:00:05]} Kb8 {[%emt 0:00:09]} 38. Rb6+ {[%emt 0:00:09]} Kc7 {[%emt 0:02:10]} 39. Rc6+ {[%emt 0:00:21]} Kd7 {[%emt 0:00:01]} 40. Kb2 {[%emt 0:01:26]} Re6 {[%emt 0:00:53]} 41. Rxe6 {[%emt 0:02:37]} Kxe6 {[%emt 0:00:02]} 42. b6 {[%emt 0:01:13]} Kd7 {[%emt 0:00:39]} 43. Kb3 {[%emt 0:00:25]} Rxc5 {[%emt 0:00:36]} 44. Kb4 {[%emt 0:00:13]} Re5 {[%emt 0:02:04]} 45. a4 {[%emt 0:00:19]} Kc6 {[%emt 0:00:54]} 46. a5 {[%emt 0:00:05]} g5 {[%emt 0:00:17]} 47. hxg5 {[%emt 0:00:04]} Rxg5 {[%emt 0:00:16]} 48. Ne2 {[%emt 0:00:32]} Rg4+ {[%emt 0:00:15]} 49. Kc3 {[%emt 0:00:05]} h4 {[%emt 0:00:12]} 0-1